[Event "Marienbad Open-B2 2019"]
[Site "Marianske Lazne"]
[Date "2019.01.20"]
[Round "2"]
[White "Lukasiewicz, Krzysztof"]
[Black "Stigar, Petter"]
[Result "1/2-1/2"]
[ECO "C07"]
[WhiteElo "2223"]
[BlackElo "2177"]
[Annotator "ChessBase"]
[PlyCount "73"]
[EventDate "2019.01.17"]
[EventType "tourn"]
[EventCountry "CZE"]
[SourceTitle "playchess.com"]
[Source "ChessBase"]
[SourceQuality "1"]
[TimeControl "40/5400+30:1800+30"]

1. e4 {[%emt 0:00:00]} e6 {[%emt 0:00:00]} 2. d4 {[%emt 0:00:00]} d5 {[%emt 0:00:00]} 3. Nd2 {[%emt 0:00:00]} c5 {[%emt 0:00:00]} 4. exd5 {[%emt 0:00:00]} Qxd5 {[%emt 0:00:12]} 5. Ngf3 {[%emt 0:00:18]} cxd4 {[%emt 0:02:15]} 6. Bc4 {[%emt 0:00:11]} Qd6 {[%emt 0:00:15]} 7. O-O {[%emt 0:00:08]} Nf6 {[%emt 0:00:30]} 8. Nb3 {[%emt 0:00:06]} Nc6 {[%emt 0:00:15]} 9. Nbxd4 {[%emt 0:00:08]} Nxd4 {[%emt 0:00:16]} 10. Nxd4 {[%emt 0:00:04]} Be7 {[%emt 0:00:19]} 11. c3 {[%emt 0:05:55]} O-O {[%emt 0:00:30]} 12. Qf3 {[%emt 0:05:36]} Qc7 {[%emt 0:00:46]} 13. Bd3 {[%emt 0:01:14]} Bd7 {[%emt 0:00:45]} 14. Re1 {[%emt 0:01:18]} Rfe8 {[%emt 0:00:56]} 15. Bf4 {[%emt 0:04:49]} Bd6 {[%emt 0:02:09]} 16. Bxd6 {[%emt 0:01:58]} Qxd6 {[%emt 0:01:09]} 17. Rad1 {[%emt 0:01:03]} Qb6 {[%emt 0:06:47]} 18. Rd2 {[%emt 0:06:01]} Rad8 {[%emt 0:06:51]} 19. Qg3 {[%emt 0:02:12]} Bc6 {[%emt 0:11:25]} 20. Nxc6 {[%emt 0:15:36]} Qxc6 {[%emt 0:17:54]} 21. Red1 {[%emt 0:01:31]} Qb6 {[%emt 0:01:09]} 22. Qh4 {[%emt 0:02:09]} h6 {[%emt 0:04:18]} 23. Qa4 {[%emt 0:02:02]} a6 {[%emt 0:07:00]} 24. h3 {[%emt 0:08:23]} Qc7 {[%emt 0:05:19]} 25. c4 {[%emt 0:02:37]} e5 {[%emt 0:01:22]} 26. Bf1 {[%emt 0:11:28]} Rxd2 {[%emt 0:03:15]} 27. Rxd2 {[%emt 0:00:09]} e4 {[%emt 0:00:29]} 28. Qb4 {[%emt 0:05:20]} e3 {[%emt 0:06:52]} 29. fxe3 {[%emt 0:00:04]} Qg3 {[%emt 0:03:46]} 30. Re2 {[%emt 0:01:33]} Rxe3 {[%emt 0:01:32]} 31. Qd2 {[%emt 0:04:10]} Rxe2 {[%emt 0:00:37]} 32. Qxe2 {[%emt 0:00:02]} Qf4 {[%emt 0:01:18]} 33. Qf2 {[%emt 0:00:52]} Qc1 {[%emt 0:07:02]} 34. Qd4 {[%emt 0:00:27]} Qe1 {[%emt 0:01:31]} 35. Qf2 {[%emt 0:06:51]} Qc1 {[%emt 0:00:07]} 36. Qd4 {[%emt 0:06:11]} Qe1 {[%emt 0:02:49]} 37. Qf2 {[%emt 0:04:05]} 1/2-1/2

[Event "Marienbad Open-B2 2019"]
[Site "Marianske Lazne"]
[Date "2019.01.20"]
[Round "2"]
[White "Hesse, Henrik"]
[Black "Cerveny, Petr"]
[Result "0-1"]
[ECO "A13"]
[WhiteElo "2166"]
[BlackElo "2318"]
[Annotator "ChessBase"]
[PlyCount "138"]
[EventDate "2019.01.17"]
[EventType "tourn"]
[EventCountry "CZE"]
[SourceTitle "playchess.com"]
[Source "ChessBase"]
[SourceQuality "1"]
[TimeControl "40/5400+30:1800+30"]

1. c4 {[%emt 0:00:00]} e6 {[%emt 0:00:00]} 2. g3 {[%emt 0:00:00]} d5 {[%emt 0:00:00]} 3. Bg2 {[%emt 0:00:00]} d4 {[%emt 0:00:00]} 4. e3 {[%emt 0:07:12]} c5 {[%emt 0:00:20]} 5. exd4 {[%emt 0:02:00]} cxd4 {[%emt 0:00:09]} 6. d3 {[%emt 0:01:22]} Nc6 {[%emt 0:00:40]} 7. Nf3 {[%emt 0:00:26]} Bd6 {[%emt 0:00:28]} 8. a3 {[%emt 0:05:03]} a5 {[%emt 0:00:06]} 9. b3 {[%emt 0:01:19]} Nge7 {[%emt 0:00:53]} 10. Bb2 {[%emt 0:06:25]} e5 {[%emt 0:00:43]} 11. Nbd2 {[%emt 0:01:13]} O-O {[%emt 0:00:48]} 12. O-O {[%emt 0:06:18]} Rb8 {[%emt 0:02:03]} 13. Re1 {[%emt 0:15:40]} Bc7 {[%emt 0:12:31]} 14. c5 {[%emt 0:05:14]} Be6 {[%emt 0:05:55]} 15. Nc4 {[%emt 0:05:22]} f6 {[%emt 0:01:50]} 16. Rc1 {[%emt 0:06:03]} Bd5 {[%emt 0:00:41]} 17. Qd2 {[%emt 0:01:49]} b5 {[%emt 0:02:26]} 18. cxb6 {[%emt 0:01:37]} Bxb6 {[%emt 0:00:04]} 19. b4 Bc7 {[%emt 0:03:31]} 20. Qe2 {[%emt 0:15:40]} Rf7 {[%emt 0:05:11]} 21. bxa5 {[%emt 0:02:33]} Nxa5 {[%emt 0:01:49]} 22. Nfd2 {[%emt 0:03:07]} Nec6 {[%emt 0:14:28]} 23. Bxd5 {[%emt 0:02:58]} Qxd5 {[%emt 0:00:03]} 24. Qe4 {[%emt 0:00:15]} Qxe4 {[%emt 0:04:59]} 25. Nxe4 {[%emt 0:00:30]} Nb3 {[%emt 0:15:48]} 26. Rc2 {[%emt 0:01:45]} Rd7 {[%emt 0:05:28]} 27. Ncd2 {[%emt 0:03:33]} Nxd2 {[%emt 0:05:34]} 28. Nxd2 {[%emt 0:00:51]} Ba5 {[%emt 0:01:08]} 29. Re2 {[%emt 0:04:32]} Bxd2 {[%emt 0:00:28]} 30. Rexd2 {[%emt 0:00:07]} Ne7 {[%emt 0:03:32]} 31. Kf1 {[%emt 0:01:00]} Rdb7 {[%emt 0:01:35]} 32. Ke2 {[%emt 0:01:19]} Nd5 {[%emt 0:00:30]} 33. Rc5 {[%emt 0:00:44]} Rxb2 {[%emt 0:04:41]} 34. Rxd5 {[%emt 0:00:05]} Rxd2+ {[%emt 0:00:05]} 35. Kxd2 {[%emt 0:00:07]} Ra8 {[%emt 0:02:39]} 36. f4 {[%emt 0:00:37]} exf4 {[%emt 0:01:27]} 37. Rxd4 {[%emt 0:00:19]} fxg3 {[%emt 0:00:34]} 38. hxg3 {[%emt 0:00:05]} Rxa3 {[%emt 0:00:03]} 39. Rd7 {[%emt 0:00:51]} h5 {[%emt 0:00:31]} 40. Rd5 {[%emt 0:01:11]} Ra2+ {[%emt 0:04:23]} 41. Ke3 {[%emt 0:01:58]} g5 {[%emt 0:02:27]} 42. Rd7 {[%emt 0:04:41]} Ra4 {[%emt 0:07:59]} 43. d4 {[%emt 0:03:03]} Ra3+ {[%emt 0:00:10]} 44. Kf2 {[%emt 0:01:29]} g4 {[%emt 0:04:02]} 45. d5 {[%emt 0:04:56]} Rf3+ {[%emt 0:06:56]} 46. Kg2 {[%emt 0:00:58]} Rd3 {[%emt 0:01:48]} 47. d6 {[%emt 0:00:48]} f5 {[%emt 0:00:51]} 48. Kf2 {[%emt 0:12:29]} h4 {[%emt 0:02:56]} 49. gxh4 {[%emt 0:00:59]} f4 {[%emt 0:00:09]} 50. Re7 {[%emt 0:01:46]} g3+ {[%emt 0:05:08]} 51. Kg2 {[%emt 0:00:32]} Rd2+ {[%emt 0:00:38]} 52. Kf3 {[%emt 0:00:40]} Rf2+ {[%emt 0:01:51]} 53. Ke4 {[%emt 0:00:01]} g2 {[%emt 0:00:20]} 54. d7 {[%emt 0:00:52]} Rd2 {[%emt 0:00:09]} 55. Re8+ {[%emt 0:00:20]} Kf7 {[%emt 0:00:14]} 56. d8=Q {[%emt 0:00:31]} Rxd8 {[%emt 0:00:10]} 57. Rxd8 {[%emt 0:00:01]} g1=Q {[%emt 0:00:11]} 58. Kxf4 {[%emt 0:00:11]} Qf2+ {[%emt 0:00:50]} 59. Kg4 {[%emt 0:00:32]} Qe2+ {[%emt 0:00:21]} 60. Kg3 {[%emt 0:00:50]} Qe5+ {[%emt 0:00:30]} 61. Kg4 {[%emt 0:00:30]} Qg7+ {[%emt 0:00:55]} 62. Kh3 {[%emt 0:00:29]} Qc3+ {[%emt 0:00:05]} 63. Kg4 {[%emt 0:00:26]} Ke7 {[%emt 0:00:54]} 64. Rb8 {[%emt 0:01:16]} Qd4+ {[%emt 0:00:59]} 65. Kf3 {[%emt 0:01:48]} Qd5+ {[%emt 0:00:07]} 66. Kf2 {[%emt 0:00:52]} Qf5+ {[%emt 0:00:09]} 67. Kg2 {[%emt 0:00:37]} Qg4+ {[%emt 0:00:05]} 68. Kh1 {[%emt 0:00:10]} Qh3+ {[%emt 0:00:08]} 69. Kg1 {[%emt 0:00:03]} Qg3+ {[%emt 0:00:04]} 0-1

[Event "Marienbad Open-B2 2019"]
[Site "Marianske Lazne"]
[Date "2019.01.20"]
[Round "2"]
[White "German, Nikita"]
[Black "Kacharava, Nikolozi"]
[Result "1/2-1/2"]
[ECO "C41"]
[WhiteElo "2162"]
[BlackElo "2397"]
[Annotator "ChessBase"]
[PlyCount "101"]
[EventDate "2019.01.17"]
[EventType "tourn"]
[EventCountry "CZE"]
[SourceTitle "playchess.com"]
[Source "ChessBase"]
[SourceQuality "1"]
[TimeControl "40/5400+30:1800+30"]

1. e4 {[%emt 0:00:00]} d6 {[%emt 0:00:00]} 2. d4 {[%emt 0:00:00]} Nf6 {[%emt 0:00:19]} 3. Nc3 {[%emt 0:00:20]} e5 {[%emt 0:00:21]} 4. Nf3 {[%emt 0:00:52]} Nbd7 {[%emt 0:00:24]} 5. Bc4 {[%emt 0:00:20]} Be7 {[%emt 0:00:32]} 6. O-O {[%emt 0:00:31]} O-O {[%emt 0:00:24]} 7. Re1 {[%emt 0:00:32]} c6 {[%emt 0:00:38]} 8. a4 {[%emt 0:01:09]} a5 {[%emt 0:00:47]} 9. h3 {[%emt 0:06:37]} h6 {[%emt 0:00:31]} 10. b3 {[%emt 0:09:15]} Nb6 {[%emt 0:17:03]} 11. Bf1 {[%emt 0:15:18]} exd4 {[%emt 0:02:19]} 12. Nxd4 {[%emt 0:00:23]} Re8 {[%emt 0:04:39]} 13. Qf3 {[%emt 0:14:56]} Nh7 {[%emt 0:04:40]} 14. Ba3 {[%emt 0:07:42]} Bf6 {[%emt 0:08:00]} 15. Rad1 {[%emt 0:00:56]} Be5 {[%emt 0:02:32]} 16. Qe3 {[%emt 0:17:11]} Qg5 {[%emt 0:20:07]} 17. Nf3 {[%emt 0:02:27]} Qxe3 {[%emt 0:01:01]} 18. Rxe3 {[%emt 0:00:05]} Bxc3 {[%emt 0:05:55]} 19. Rxc3 {[%emt 0:00:07]} Rxe4 {[%emt 0:01:21]} 20. Rxd6 {[%emt 0:00:22]} Re8 {[%emt 0:04:08]} 21. Re3 {[%emt 0:06:36]} Be6 {[%emt 0:02:57]} 22. c4 {[%emt 0:02:40]} Nf6 {[%emt 0:03:00]} 23. Bb2 {[%emt 0:00:55]} Red8 {[%emt 0:04:02]} 24. Rxd8+ {[%emt 0:00:51]} Rxd8 {[%emt 0:00:01]} 25. Bc3 {[%emt 0:00:11]} Ra8 {[%emt 0:02:18]} 26. Re5 {[%emt 0:02:12]} Nbd7 {[%emt 0:01:57]} 27. Rxa5 {[%emt 0:00:06]} Rxa5 {[%emt 0:01:00]} 28. Bxa5 {[%emt 0:00:04]} Bf5 {[%emt 0:01:39]} 29. Be2 {[%emt 0:03:13]} c5 {[%emt 0:00:54]} 30. Bd1 {[%emt 0:01:41]} Nb8 {[%emt 0:03:28]} 31. Kf1 {[%emt 0:01:52]} Nc6 {[%emt 0:00:17]} 32. Bd2 {[%emt 0:02:50]} b6 {[%emt 0:01:12]} 33. Ke2 {[%emt 0:00:19]} Kf8 {[%emt 0:00:30]} 34. Ke3 {[%emt 0:00:38]} Ke7 {[%emt 0:00:23]} 35. Bc3 {[%emt 0:00:39]} Ke6 {[%emt 0:03:40]} 36. Ne1 {[%emt 0:01:32]} Ne8 {[%emt 0:03:07]} 37. Bc2 {[%emt 0:00:32]} Bxc2 {[%emt 0:00:47]} 38. Nxc2 {[%emt 0:00:05]} Na5 {[%emt 0:00:29]} 39. Na1 {[%emt 0:02:15]} g6 {[%emt 0:01:07]} 40. Kd3 {[%emt 0:00:50]} Nd6 {[%emt 0:00:40]} 41. Bxa5 {[%emt 0:30:47]} bxa5 {[%emt 0:30:07]} 42. Nc2 {[%emt 0:00:32]} h5 {[%emt 0:00:00]} 43. Ne3 {[%emt 0:00:00]} Nf5 {[%emt 0:00:00]} 44. Nxf5 {[%emt 0:00:00]} Kxf5 {[%emt 0:00:00]} 45. Ke3 {[%emt 0:00:00]} Ke5 {[%emt 0:00:00]} 46. g3 {[%emt 0:00:00]} f6 {[%emt 0:00:00]} 47. f4+ {[%emt 0:00:00]} Ke6 {[%emt 0:00:00]} 48. g4 {[%emt 0:00:00]} f5 {[%emt 0:00:00]} 49. Kf3 {[%emt 0:00:00]} h4 {[%emt 0:00:00]} 50. gxf5+ {[%emt 0:00:00]} gxf5 {[%emt 0:00:00]} 51. Ke3 {[%emt 0:00:00]} 1/2-1/2

[Event "Marienbad Open-B2 2019"]
[Site "Marianske Lazne"]
[Date "2019.01.21"]
[Round "3"]
[White "Frolov, Artur"]
[Black "Lukasiewicz, Krzysztof"]
[Result "1-0"]
[ECO "B19"]
[WhiteElo "2430"]
[BlackElo "2223"]
[Annotator "ChessBase"]
[PlyCount "109"]
[EventDate "2019.01.17"]
[EventType "tourn"]
[EventCountry "CZE"]
[SourceTitle "playchess.com"]
[Source "ChessBase"]
[SourceQuality "1"]
[TimeControl "40/5400+30:1800+30"]

1. e4 {[%emt 0:00:00]} c6 {[%emt 0:00:00]} 2. d4 {[%emt 0:00:00]} d5 {[%emt 0:00:00]} 3. Nd2 {[%emt 0:00:00]} dxe4 {[%emt 0:00:00]} 4. Nxe4 {[%emt 0:00:00]} Bf5 {[%emt 0:00:00]} 5. Ng3 {[%emt 0:00:00]} Bg6 {[%emt 0:00:00]} 6. Nf3 {[%emt 0:00:08]} Nd7 {[%emt 0:00:00]} 7. h4 {[%emt 0:00:06]} h6 {[%emt 0:00:00]} 8. h5 {[%emt 0:00:05]} Bh7 {[%emt 0:00:03]} 9. Bd3 {[%emt 0:00:07]} Bxd3 {[%emt 0:00:04]} 10. Qxd3 {[%emt 0:00:06]} e6 {[%emt 0:00:05]} 11. Bf4 {[%emt 0:00:14]} Qa5+ {[%emt 0:00:20]} 12. Bd2 {[%emt 0:00:08]} Bb4 {[%emt 0:00:03]} 13. a3 {[%emt 0:04:14]} Bxd2+ {[%emt 0:00:17]} 14. Qxd2 {[%emt 0:00:10]} Qc7 {[%emt 0:00:06]} 15. Ne4 {[%emt 0:11:13]} Ngf6 {[%emt 0:02:52]} 16. Nxf6+ {[%emt 0:01:42]} Nxf6 {[%emt 0:00:06]} 17. O-O-O {[%emt 0:00:13]} c5 {[%emt 0:02:26]} 18. Qe2 {[%emt 0:06:11]} O-O {[%emt 0:03:51]} 19. Ne5 {[%emt 0:00:45]} Rad8 {[%emt 0:06:07]} 20. dxc5 {[%emt 0:09:54]} Qxc5 {[%emt 0:02:16]} 21. g4 {[%emt 0:01:48]} Rd5 {[%emt 0:04:52]} 22. Rxd5 {[%emt 0:00:11]} Qxd5 {[%emt 0:09:41]} 23. Rd1 {[%emt 0:00:12]} Qa2 {[%emt 0:05:00]} 24. c3 {[%emt 0:00:46]} Qb3 {[%emt 0:07:29]} 25. Qc4 {[%emt 0:02:11]} Qxc4 {[%emt 0:06:17]} 26. Nxc4 {[%emt 0:00:02]} Nxg4 {[%emt 0:08:53]} 27. Rd7 {[%emt 0:00:06]} g5 {[%emt 0:05:26]} 28. f3 {[%emt 0:05:11]} Nh2 {[%emt 0:06:55]} 29. Nd2 {[%emt 0:11:59]} Rb8 {[%emt 0:12:07]} 30. c4 {[%emt 0:00:08]} g4 {[%emt 0:00:38]} 31. fxg4 {[%emt 0:00:05]} Nxg4 {[%emt 0:00:05]} 32. Ne4 {[%emt 0:00:07]} Ne5 {[%emt 0:04:17]} 33. Rc7 {[%emt 0:00:17]} b6 {[%emt 0:01:10]} 34. b4 {[%emt 0:01:29]} a5 {[%emt 0:01:38]} 35. b5 {[%emt 0:06:25]} Rd8 {[%emt 0:02:53]} 36. c5 {[%emt 0:00:33]} Nd3+ {[%emt 0:01:32]} 37. Kc2 {[%emt 0:00:58]} Nxc5 {[%emt 0:00:07]} 38. Nxc5 {[%emt 0:00:06]} bxc5 {[%emt 0:00:04]} 39. b6 {[%emt 0:00:04]} Rb8 {[%emt 0:00:54]} 40. b7 {[%emt 0:00:34]} Kg7 {[%emt 0:00:02]} 41. Kd3 {[%emt 0:30:07]} Kf6 {[%emt 0:30:05]} 42. Kc4 {[%emt 0:00:37]} Ke5 {[%emt 0:01:11]} 43. Kxc5 {[%emt 0:03:21]} f5 {[%emt 0:00:07]} 44. Kc6 {[%emt 0:00:04]} f4 {[%emt 0:00:07]} 45. Rc8 {[%emt 0:00:05]} Rxb7 {[%emt 0:00:03]} 46. Kxb7 {[%emt 0:00:08]} Ke4 {[%emt 0:01:33]} 47. Rf8 {[%emt 0:00:19]} f3 {[%emt 0:01:50]} 48. Rf6 {[%emt 0:00:33]} e5 {[%emt 0:00:52]} 49. Rxh6 {[%emt 0:05:39]} Kf5 {[%emt 0:00:22]} 50. Rh8 {[%emt 0:00:08]} e4 {[%emt 0:00:04]} 51. h6 {[%emt 0:00:19]} e3 {[%emt 0:01:00]} 52. Rf8+ {[%emt 0:00:20]} Kg4 {[%emt 0:00:10]} 53. h7 {[%emt 0:00:05]} e2 {[%emt 0:00:02]} 54. h8=Q {[%emt 0:00:15]} e1=Q {[%emt 0:00:05]} 55. Qg7+ {[%emt 0:00:13]} 1-0

[Event "Marienbad Open-B2 2019"]
[Site "Marianske Lazne"]
[Date "2019.01.21"]
[Round "3"]
[White "Kacharava, Nikolozi"]
[Black "Jurek, Josef"]
[Result "1-0"]
[ECO "C03"]
[WhiteElo "2397"]
[BlackElo "2273"]
[Annotator "NA"]
[PlyCount "67"]
[EventDate "2019.01.17"]
[EventType "tourn"]
[EventCountry "CZE"]
[SourceTitle "playchess.com"]
[Source "ChessBase"]
[SourceQuality "1"]
[TimeControl "40/5400+30:1800+30"]

1. e4 {[%emt 0:00:00]} e6 {[%emt 0:00:00]} 2. d4 {[%emt 0:00:00]} d5 {[%emt 0:00:01]} 3. Nd2 {[%emt 0:00:16]} Be7 {[%emt 0:00:56]} 4. Ngf3 {[%emt 0:00:42]} Nf6 {[%emt 0:00:42]} 5. Bd3 {[%emt 0:00:39]} c5 {[%emt 0:00:56]} 6. exd5 {[%emt 0:00:25]} Qxd5 {[%emt 0:02:35]} 7. dxc5 {[%emt 0:00:31]} Nbd7 {[%emt 0:01:56]} 8. b4 {[%emt 0:00:52] C03: French Tarrasch: Unusual Black 3rd moves} a5 {[%emt 0:01:46]} 9. Bc4 {[%emt 0:01:01]} Qh5 {[%emt 0:01:52]} 10. c3 {[%emt 0:00:38]} Nd5 {[%emt 0:02:22] LiveBook: 16 Games} 11. Bxd5 {[%emt 0:01:53]} Qxd5 {[%emt 0:01:41]} 12. Bb2 {[%emt 0:00:39]} (12. a4 b6 13. O-O bxc5 14. b5 Bb7 15. c4 Qf5 {½-½ (44) Naiditsch,A (2716)-Edouard,R (2602) Mulhouse 2011 CBM 142 Extra [Edouard,R]}) 12... axb4 {[%emt 0:05:25]} 13. cxb4 {[%emt 0:00:08]} Rxa2 {[%emt 0:01:07]} 14. Rxa2 {[%emt 0:00:12]} Qxa2 {[%emt 0:00:14]} 15. Qc1 {[%emt 0:00:49]} O-O {[%emt 0:05:38]} 16. O-O $146 {[%emt 0:00:55]} Bf6 {[%emt 0:02:37]} 17. Bxf6 {[%emt 0:06:37]} Nxf6 {[%emt 0:01:03]} 18. Qc4 {[%emt 0:05:17]} Qxc4 {[%emt 0:02:07]} 19. Nxc4 {[%emt 0:01:21]} Bd7 {[%emt 0:03:16]} 20. Nd6 {[%emt 0:07:43]} Bc6 {[%emt 0:18:27]} 21. Ne5 {[%emt 0:06:24]} Bd5 {[%emt 0:12:48]} 22. f3 {[%emt 0:07:27]} Nh5 $2 {[%emt 0:09:46]} (22... Ra8 $16 23. b5 (23. Ndxf7 Kf8 $16) (23. Nexf7 Kf8 $16) 23... Kf8) 23. Ra1 {[%emt 0:04:59]} Nf4 {[%emt 0:05:06]} 24. Nd7 {[%emt 0:05:43]} Rd8 {[%emt 0:00:20]} 25. Nb6 {[%emt 0:01:09]} Rb8 {[%emt 0:03:24]} 26. b5 {[%emt 0:03:14]} g5 {[%emt 0:06:55]} 27. Nd7 {[%emt 0:04:18]} Rd8 {[%emt 0:00:55]} 28. Nf6+ {[%emt 0:00:21]} Kg7 {[%emt 0:00:16]} 29. Nxd5 {[%emt 0:01:05]} exd5 {[%emt 0:00:54]} 30. Nxb7 {[%emt 0:14:02]} Re8 {[%emt 0:00:09]} 31. c6 {[%emt 0:02:12]} Re2 $18 {[%emt 0:01:11]} 32. c7 {[%emt 0:00:38]} Rxg2+ {[%emt 0:00:28]} 33. Kh1 {[%emt 0:02:12]} Rc2 {[%emt 0:00:26]} 34. Nd6 {[%emt 0:00:34]} 1-0

[Event "Marienbad Open-B2 2019"]
[Site "Marianske Lazne"]
[Date "2019.01.21"]
[Round "3"]
[White "Cerveny, Petr"]
[Black "German, Nikita"]
[Result "1/2-1/2"]
[ECO "C18"]
[WhiteElo "2318"]
[BlackElo "2162"]
[Annotator "ChessBase"]
[PlyCount "85"]
[EventDate "2019.01.17"]
[EventType "tourn"]
[EventCountry "CZE"]
[SourceTitle "playchess.com"]
[Source "ChessBase"]
[SourceQuality "1"]
[TimeControl "40/5400+30:1800+30"]

1. e4 {[%emt 0:00:00]} e6 {[%emt 0:00:00]} 2. d4 {[%emt 0:00:36]} d5 {[%emt 0:00:29]} 3. Nc3 {[%emt 0:00:31]} Bb4 {[%emt 0:00:23]} 4. e5 {[%emt 0:00:23]} c5 {[%emt 0:00:44]} 5. a3 {[%emt 0:00:09]} Bxc3+ {[%emt 0:00:21]} 6. bxc3 {[%emt 0:00:03]} Ne7 {[%emt 0:00:18]} 7. h4 {[%emt 0:02:11]} Qc7 {[%emt 0:13:03]} 8. Nf3 {[%emt 0:02:56]} b6 {[%emt 0:02:33]} 9. h5 {[%emt 0:01:17]} h6 {[%emt 0:00:45]} 10. Bb5+ {[%emt 0:08:18]} Bd7 {[%emt 0:02:53]} 11. Bd3 {[%emt 0:00:26]} Nbc6 {[%emt 0:10:00]} 12. O-O {[%emt 0:01:18]} Rc8 {[%emt 0:05:38]} 13. Re1 {[%emt 0:00:41]} Na5 {[%emt 0:06:55]} 14. Bf4 {[%emt 0:08:34]} Ba4 {[%emt 0:03:14]} 15. Ra2 {[%emt 0:04:16]} Qc6 {[%emt 0:09:16]} 16. Qb1 {[%emt 0:06:44]} Kd8 {[%emt 0:11:20]} 17. Bg3 {[%emt 0:15:51]} Kc7 {[%emt 0:04:27]} 18. Bh4 {[%emt 0:04:45]} Qd7 {[%emt 0:04:05]} 19. g4 {[%emt 0:11:21]} Nc4 {[%emt 0:08:50]} 20. Rd1 {[%emt 0:06:07]} Na5 {[%emt 0:02:03]} 21. dxc5 {[%emt 0:02:26]} bxc5 {[%emt 0:00:49]} 22. Qc1 {[%emt 0:00:41]} Bc6 {[%emt 0:07:15]} 23. Be2 {[%emt 0:11:43]} Rhg8 {[%emt 0:02:20]} 24. Qe3 {[%emt 0:00:24]} Nb7 {[%emt 0:00:31]} 25. Bg3 {[%emt 0:03:02]} Kb8 {[%emt 0:01:12]} 26. Rb2 {[%emt 0:00:11]} Ka8 {[%emt 0:00:35]} 27. Rdb1 {[%emt 0:00:51]} Rc7 {[%emt 0:02:11]} 28. Kh2 {[%emt 0:00:40]} Nc8 {[%emt 0:00:59]} 29. Qd3 {[%emt 0:03:14]} g6 {[%emt 0:00:41]} 30. Qa6 {[%emt 0:01:02]} Ne7 {[%emt 0:00:32]} 31. hxg6 {[%emt 0:00:57]} Nxg6 {[%emt 0:00:33]} 32. Bb5 {[%emt 0:02:13]} Ne7 {[%emt 0:00:23]} 33. Kh3 {[%emt 0:00:52]} Rh8 {[%emt 0:00:29]} 34. Bh4 {[%emt 0:00:45]} Bxb5 {[%emt 0:00:22]} 35. Rxb5 {[%emt 0:00:09]} Ng6 {[%emt 0:00:33]} 36. Bg3 {[%emt 0:00:40]} Qe7 {[%emt 0:00:41]} 37. Kg2 {[%emt 0:00:32]} Rg8 {[%emt 0:00:26]} 38. Kf1 {[%emt 0:00:25]} Qd7 {[%emt 0:00:19]} 39. Nd2 {[%emt 0:00:50]} Ne7 {[%emt 0:00:47]} 40. Qa4 {[%emt 0:01:19]} c4 41. f3 h5 42. Bf2 Nc6 43. Bg3 1/2-1/2

[Event "Marienbad Open-B2 2019"]
[Site "Marianske Lazne"]
[Date "2019.01.21"]
[Round "3"]
[White "Stigar, Petter"]
[Black "Hesse, Henrik"]
[Result "1/2-1/2"]
[ECO "C42"]
[WhiteElo "2177"]
[BlackElo "2166"]
[Annotator "NA"]
[PlyCount "61"]
[EventDate "2019.01.17"]
[EventType "tourn"]
[EventCountry "CZE"]
[SourceTitle "playchess.com"]
[Source "ChessBase"]
[SourceQuality "1"]
[TimeControl "40/5400+30:1800+30"]

1. e4 {[%emt 0:00:00]} e5 {[%emt 0:02:53]} 2. Nf3 {[%emt 0:02:20]} Nf6 {[%emt 0:00:10]} 3. Nxe5 {[%emt 0:00:16]} d6 {[%emt 0:00:18]} 4. Nf3 {[%emt 0:00:07]} Nxe4 {[%emt 0:00:07]} 5. Nc3 {[%emt 0:00:17]} Nxc3 {[%emt 0:00:13]} 6. dxc3 {[%emt 0:00:16]} Be7 {[%emt 0:00:11]} 7. Be3 {[%emt 0:00:13]} Nd7 {[%emt 0:00:39]} 8. Qd2 {[%emt 0:00:33] C42: Petroff Defence: 3 Nxe5 and unusual White 3rd moves} O-O {[%emt 0:00:52]} 9. O-O-O {[%emt 0:00:12]} b6 {[%emt 0:04:04]} (9... Nf6 10. Bd3 c5 11. Rhe1 Be6 12. Kb1 Qa5 13. c4 Qxd2 14. Bxd2 h6 15. Nh4 Rfe8 {½-½ (55) Carlsen,M (2835)-Caruana,F (2832) London 2018}) 10. h4 {[%emt 0:02:17]} Bb7 {[%emt 0:00:52]} 11. Bd3 {[%emt 0:00:27]} Nc5 {[%emt 0:06:08]} 12. Ng5 $146 {[%emt 0:01:38]} ({Predecessor:} 12. Nd4 Bf6 13. Rh3 Bxg2 14. Rg3 Ne4 15. Bxe4 Bxe4 {½-½ (57) Colpe,M (2382)-Hesse,H (2057) Lueneburg 2018}) 12... h6 {[%emt 0:11:15]} 13. Bh7+ {[%emt 0:00:23]} Kh8 {[%emt 0:00:45]} 14. Bf5 {[%emt 0:00:20]} Qe8 {[%emt 0:21:58]} 15. Bd4 {[%emt 0:13:55]} f6 {[%emt 0:13:03]} ({Not} 15... hxg5 $2 16. hxg5+ Kg8 17. Rh7 $18) ({And not} 15... Bxg2 {[#]} 16. Nxf7+ $1 {[%mdl 512]} Kg8 17. Qxh6 $1 {[%mdl 512]} Bg5+ 18. hxg5 Qe5 19. Bxe5 Kxf7 20. Qxg7+ Ke8 21. Qg6+ Ke7 22. Bf6+ Rxf6 23. gxf6+ Kf8 24. Rh8#) 16. Nh3 {[%emt 0:15:15]} Be4 {[%emt 0:06:01]} 17. Bxe4 {[%emt 0:21:39]} Nxe4 {[%emt 0:00:17]} 18. Qe3 {[%emt 0:05:13]} d5 {[%emt 0:02:20]} 19. c4 {[%emt 0:07:52]} c6 {[%emt 0:11:22]} 20. cxd5 {[%emt 0:01:00]} cxd5 {[%emt 0:00:14]} 21. Nf4 {[%emt 0:00:34]} Bd6 {[%emt 0:05:49]} 22. Nxd5 {[%emt 0:03:35]} Qe6 {[%emt 0:00:12]} 23. Nc3 {[%emt 0:04:30]} Rae8 {[%emt 0:05:34]} 24. Qxe4 {[%emt 0:12:06]} Qxe4 {[%emt 0:00:20]} 25. Nxe4 {[%emt 0:00:06]} Rxe4 {[%emt 0:00:05]} 26. Be3 {[%emt 0:00:34]} Bf4 {[%emt 0:01:47]} 27. Bxf4 {[%emt 0:01:01]} Rxf4 {[%emt 0:00:01]} 28. Rd2 {[%emt 0:00:45]} Re8 {[%emt 0:01:16]} 29. g3 $16 {[%emt 0:01:21]} Rfe4 {[%emt 0:00:11]} 30. c3 {[%emt 0:01:42]} f5 {[%emt 0:01:38]} 31. Kc2 {[%emt 0:01:52]} 1/2-1/2

[Event "Marienbad Open-B2 2019"]
[Site "Marianske Lazne"]
[Date "2019.01.21"]
[Round "3"]
[White "Ng, Jen Sheng"]
[Black "Plischki, Sebastian"]
[Result "1/2-1/2"]
[ECO "B90"]
[WhiteElo "2075"]
[BlackElo "2426"]
[Annotator "ChessBase"]
[PlyCount "49"]
[EventDate "2019.01.17"]
[EventType "tourn"]
[EventCountry "CZE"]
[SourceTitle "playchess.com"]
[Source "ChessBase"]
[SourceQuality "1"]
[TimeControl "40/5400+30:1800+30"]

1. e4 {[%emt 0:00:00]} c5 {[%emt 0:00:00]} 2. Nf3 {[%emt 0:00:00]} d6 {[%emt 0:00:00]} 3. d4 {[%emt 0:00:00]} cxd4 {[%emt 0:00:00]} 4. Nxd4 {[%emt 0:00:00]} Nf6 {[%emt 0:00:00]} 5. Nc3 {[%emt 0:00:00]} a6 {[%emt 0:00:05]} 6. Bc4 {[%emt 0:00:00]} e6 {[%emt 0:00:07]} 7. Bb3 {[%emt 0:00:00]} Nbd7 {[%emt 0:00:09]} 8. f4 {[%emt 0:00:01]} Nc5 {[%emt 0:00:07]} 9. Qf3 {[%emt 0:00:03]} b5 {[%emt 0:00:39]} 10. f5 {[%emt 0:00:04]} Bd7 {[%emt 0:00:15]} 11. fxe6 {[%emt 0:01:16]} fxe6 {[%emt 0:00:07]} 12. O-O {[%emt 0:00:02]} Be7 {[%emt 0:06:01]} 13. e5 {[%emt 0:07:43]} dxe5 {[%emt 0:00:06]} 14. Nc6 {[%emt 0:00:02]} Bxc6 {[%emt 0:01:32]} 15. Qxc6+ {[%emt 0:00:05]} Kf7 {[%emt 0:00:23]} 16. Be3 {[%emt 0:04:45]} Qd6 {[%emt 0:18:37]} 17. Qf3 {[%emt 0:03:18]} Nxb3 {[%emt 0:05:49]} 18. axb3 {[%emt 0:00:43]} Rhc8 {[%emt 0:01:36]} 19. Ne4 {[%emt 0:10:03]} Qc6 {[%emt 0:01:02]} 20. Bg5 {[%emt 0:11:38]} Kg8 {[%emt 0:16:11]} 21. Bxf6 {[%emt 0:04:40]} gxf6 {[%emt 0:00:07]} 22. Nxf6+ {[%emt 0:00:18]} Kh8 {[%emt 0:00:33]} 23. Qxc6 {[%emt 0:12:07]} Rxc6 {[%emt 0:00:08]} 24. c3 {[%emt 0:00:11]} b4 {[%emt 0:03:49]} 25. Ne4 {[%emt 0:03:00]} 1/2-1/2